Cogmind - Beta 15 @@@ ROGUE MODE // 2025.07.21 @ 01:53:37 Player: shapeshifter Result: Destroyed by G-73 Enforcer with Heavy Laser Performance ------------- Evolutions (8) 4000 Regions Visited (15) 3000 Robots Destroyed (139) 695 Value Destroyed (4883) 4883 Prototype IDs (2) 40 Alien Tech Used (0) 0 Bonus (1782) 1782 TOTAL SCORE: 14400 Bonus ------- High Alert Combat Kills 82 Entered Garrisons 200 Entered DSFs 1500 Cogmind --------- Core Integrity 0/1450 Matter 22/300 Energy 19/100 System Corruption 10% Temperature Cool (35) Movement Hovering (70) Location -2/Research Parts ------- > --- POWER (2) -------- (None) > --- PROPULSION (6) --- Improved Gyrokinetic Inverter Improved Gyrokinetic Inverter Improved Gyrokinetic Inverter > --- UTILITY (11) ----- (None) > --- WEAPON (4) ------- (None) > --- INVENTORY (5) ---- Enhanced Armored Heavy Treads Improved Gyrokinetic Inverter Railgun Railgun Peak State ------------ > --- POWER ------------ Light Neutrino Core Antimatter Reactor > --- PROPULSION ------- Thunder Leg Thunder Leg Thunder Leg Thunder Leg Myomer Leg > --- UTILITY ---------- Improved Coolant Injector Advanced Sensor Array Weapon Cycler Transmission Jammer Advanced Transmission Jammer Improved Shock Absorption System > --- WEAPON ----------- Gatling Laser Heavy Beamcaster Phase Cannon Heavy Phase Cannon > --- INVENTORY -------- Micro Fission Core Flexi-carbon Leg Flexi-carbon Leg KE Penetrator Heavy Gauss Cannon [Rating: 100] Favorites ----------- Power Deuterium Engine Engine Deuterium Engine Power Core Nuclear Core Reactor Antimatter Reactor Propulsion Medium Treads Treads Medium Treads Leg Flexi-carbon Leg Hover Unit Improved Gyrokinetic Inverter Flight Unit Q-thruster Utility Large Storage Unit Device Improved Heat Sink Storage Large Storage Unit Processor Advanced Targeting Computer Protection Core Shielding Weapon Autogun Energy Gun Gatling Laser Energy Cannon Heavy Phase Cannon Ballistic Gun Autogun Ballistic Cannon Heavy Flak Cannon Launcher Improved Proton Missile Launcher Build | -11 -10 -9 -8 -7 -7 -6 -5 -5 -5 -5 -4 -4 -3 -3 -2 ------- Run | Yrd Mat Mat Mat Fac DSF Fac Fac Was Fac DSF Fac Gar Res DSF Res Slots Evolved 16 | . . 2 2 2 . 2 2 . . . 2 . 2 . 2 Power 1 | . . . . . . 1 . . . . . . . . . Propulsion 4 | . . 2 . . . . 1 . . . . . 1 . . Utility 9 | . . . . 2 . 1 1 . . . 2 . 1 . 2 Weapon 2 | . . . 2 . . . . . . . . . . . . Parts Attached 133 | 6 6 9 16 . 10 10 14 1 2 6 13 11 . 17 12 Power 17 | 1 1 2 . . 1 2 3 1 . . 2 2 . 1 1 Engine 8 | 1 1 2 . . 1 1 2 . . . . . . . . Core 6 | . . . . . . 1 1 1 . . 1 2 . . . Reactor 3 | . . . . . . . . . . . 1 . . 1 1 Propulsion 50 | 2 1 5 5 . 3 2 3 . . 3 6 4 . 8 8 Treads 22 | 2 1 3 5 . 3 2 3 . . . . 2 . . 1 Leg 13 | . . 2 . . . . . . . 3 6 2 . . . Wheel . | . . . . . . . . . . . . . . . . Hover 7 | . . . . . . . . . . . . . . . 7 Flight 8 | . . . . . . . . . . . . . . 8 . Utility 25 | 1 2 . 2 . 2 4 3 . 1 2 5 1 . 1 1 Device 13 | . . . 1 . . 2 1 . 1 1 5 1 . . 1 Storage 4 | 1 1 . 1 . . . . . . 1 . . . . . Processor 2 | . . . . . . 1 1 . . . . . . . . Hackware . | . . . . . . . . . . . . . . . . Protection 6 | . 1 . . . 2 1 1 . . . . . . 1 . Artifact . | . . . . . . . . . . . . . . . . Weapon 41 | 2 2 2 9 . 4 2 5 . 1 1 . 4 . 7 2 Energy Gun 11 | . . . 1 . 4 . 3 . . 1 . 1 . . 1 Energy Cannon 3 | . . . 1 . . 1 . . 1 . . . . . . Ballistic Gun 20 | 2 2 2 6 . . 1 . . . . . 2 . 4 1 Ballistic Cannon 5 | . . . . . . . 1 . . . . 1 . 3 . Launcher 2 | . . . 1 . . . 1 . . . . . . . . Special Weapon . | . . . . . . . . . . . . . . . . Impact Weapon . | . . . . . . . . . . . . . . . . Slashing Weapon . | . . . . . . . . . . . . . . . . Piercing Weapon . | . . . . . . . . . . . . . . . . Special Melee Weapon . | . . . . . . . . . . . . . . . . Unidentified Prototypes 2 | . . . . . . . . . . . 1 . . . 1 Corrupted Parts 1 | . . . . . . . . . . . . 1 . . . System Corruption 2 | . . . . . . . . . . . . 2 . . . Parts Lost 66 | . 2 . 2 . 8 . 10 6 . 1 . 18 . 8 11 Power 10 | . . . . . 1 . 2 1 . . . 3 . 1 2 Propulsion 27 | . 2 . 1 . 2 . 4 1 . . . 6 . 4 7 Utility 12 | . . . . . 2 . . 3 . 1 . 3 . 2 1 Weapon 17 | . . . 1 . 3 . 4 1 . . . 6 . 1 1 Highest Loss Streak 8 | . 1 . 1 . 8 . 3 6 . 1 . 6 . 7 4 To Critical Strikes 1 | . . . . . . . . 1 . . . . . . . Average Backups 8 | 3 6 9 13 13 13 9 12 7 2 3 2 4 3 4 4 Power 1 | . 1 1 2 3 2 1 1 . . . . 1 1 1 . Propulsion 1 | 1 2 . . . 3 3 1 . . . . . . 1 1 Utility 2 | . 1 2 6 9 5 3 4 3 1 1 . . . . . Weapon 3 | . 2 5 3 1 1 2 5 3 1 1 1 1 1 1 2 Tool/Special . | . . . . . . . . . . . . . . . . Unused Backups 32 | . 1 2 7 . 6 . 6 3 . . 2 1 . 2 2 Power 3 | . 1 1 . . . . . . . . . 1 . . . Propulsion 6 | . . . 2 . 2 . . . . . . . . 1 1 Utility 10 | . . . 2 . 4 . 2 2 . . . . . . . Weapon 12 | . . 1 3 . . . 4 1 . . 2 . . . 1 Tool/Special 1 | . . . . . . . . . . . . . . 1 . Average Slot Usage (%) 81 | . 86 97 98 84 88 97 95 57 13 25 68 56 33 47 23 Engine 5 | . 14 11 9 7 5 6 5 4 . . . . . . . Core 2 | . . . . . . 5 5 4 . . 4 2 4 . 2 Reactor 1 | . . . . . . . . . . . 3 4 . 3 1 Treads 19 | . 18 35 35 30 29 26 26 8 . . . 5 4 1 . Leg 5 | . . 6 . . . . . . . 5 22 16 9 2 . Device 7 | . . . 3 7 5 12 11 8 3 6 19 11 9 7 . Storage 5 | . 14 11 9 7 7 6 5 4 . 1 . . . . . Processor 2 | . . . . . . 5 10 9 . . . . . . . Protection 5 | . 10 11 5 . 9 5 5 3 . . . . . . . Energy Gun 5 | . . . 5 . 13 10 4 4 5 8 10 5 . . 1 Energy Cannon 2 | . . . 1 . . 4 3 . 3 1 7 1 . . . Ballistic Gun 11 | . 28 22 27 30 14 8 5 4 . . . 5 4 6 1 Peak Build Rating 100 | 6 10 16 41 38 52 59 76 49 14 35 100 94 34 95 74 Average Rating 45 | 3 7 13 32 38 45 56 69 40 13 21 70 56 34 72 48 On Entrance 31 | . 6 10 16 38 38 31 59 45 2 14 35 94 34 34 52 Naked Turns 15 | . . . . . . . . 15 . . . . . . . Heaviest Build 84 | 14 34 36 45 45 54 70 84 52 13 13 60 60 28 50 42 Greatest Support 140 | 40 40 80 112 104 112 112 140 56 3 60 117 117 40 48 74 Greatest Overweight (x) 11 | . 11 1 . . . . 1 9 4 4 . . . 1 . Average Overweight (x) . | . 1 . . . . . . . 4 . . . . . . Largest Inventory Capacity 15 | 8 15 15 15 15 15 15 15 15 5 5 5 5 5 5 5 Average Capacity 11 | 6 14 15 15 15 15 15 15 13 5 5 5 5 5 5 5 Most Carried 15 | 5 10 14 15 13 15 15 15 8 4 5 5 5 3 5 5 Average Carried 8 | 3 6 9 13 13 13 9 12 7 2 3 2 4 3 4 4 Final Capacity 15 | 8 15 15 15 15 15 15 15 5 5 5 5 5 5 5 5 Final Carried 15 | 4 8 14 13 13 11 15 8 5 2 5 5 3 3 3 5 Class Distribution -------------------- 40% | Tank 34% | Mutant 7% | Scavenger-Skirmisher 5% | Gunner 5% | Scavenger-Mutant Dominant Class ---------------- Mutant | -10/Materials Mutant | -9/Materials Tank | -8/Materials Tank | -7/Factory Tank | -7/DSF Tank | -6/Factory Tank | -5/Factory Mutant | -5/Waste Mutant | -5/Factory Mutant | -5/DSF Scavenger-Skirmisher | -4/Factory Scavenger-Gunner | -4/Garrison Scavenger-Gunner | -3/Research Sprinter | -3/DSF Mutant | -2/Research Resources | -11 -10 -9 -8 -7 -7 -6 -5 -5 -5 -5 -4 -4 -3 -3 -2 ----------- Run | Yrd Mat Mat Mat Fac DSF Fac Fac Was Fac DSF Fac Gar Res DSF Res Matter Collected 3924 | 136 305 539 677 . 354 253 910 . . 138 160 335 . 113 4 Remotely . | . . . . . . . . . . . . . . . . Salvage Created 5913 | . 408 831 1061 . 514 263 1822 . . 30 275 637 . 72 . Parts 275 | . 26 52 56 . 22 13 58 . . . 16 27 . 5 . Haulers Intercepted 3 | . . 1 2 . . . . . . . . . . . . Recyclers Shooed 3 | . 1 1 . . . . . . . . 1 . . . . Parts Field Recycled . | . . . . . . . . . . . . . . . . Retrieved Matter . | . . . . . . . . . . . . . . . . Parts Self-Destructed . | . . . . . . . . . . . . . . . . Prevented . | . . . . . . . . . . . . . . . . Kills | -11 -10 -9 -8 -7 -7 -6 -5 -5 -5 -5 -4 -4 -3 -3 -2 ------- Run | Yrd Mat Mat Mat Fac DSF Fac Fac Was Fac DSF Fac Gar Res DSF Res Combat Hostiles Destroyed 103 | . 10 17 17 . 8 7 23 . . . 5 15 . 1 . Guns 69 | . 10 17 12 . 8 5 6 . . . 2 9 . . . Cannons 28 | . . . 2 . . 2 14 . . . 3 6 . 1 . AOE 6 | . . . 3 . . . 3 . . . . . . . . Classes Destroyed 14 | . 3 6 3 . 1 1 . . . . . . . . . Worker 10 | . . 2 4 . . . 4 . . . . . . . . Builder 6 | . . 1 2 . . . 3 . . . . . . . . Hauler 3 | . . 1 2 . . . . . . . . . . . . Recycler 8 | . 2 1 3 . . . 2 . . . . . . . . Operator 1 | . . . 1 . . . . . . . . . . . . Watcher 8 | . . 3 1 . . . 2 . . . 1 1 . . . Swarmer 27 | . 6 3 6 . . 4 . . . . . 8 . . . Grunt 44 | . 4 9 4 . 3 2 18 . . . . 4 . . . Brawler 5 | . . 1 . . . . 1 . . . . 3 . . . Duelist 1 | . . . 1 . . . . . . . . . . . . Sentry 9 | . . 4 4 . 1 . . . . . . . . . . Specialist 5 | . . . . . 4 . . . . . . . . 1 . Hunter 2 | . . . 2 . . . . . . . . . . . . Programmer 10 | . . . . . . 1 4 . . . 5 . . . . Best Kill Streak 19 | . 4 5 11 . 4 3 19 . . . 3 9 . 1 . Combat Bots Only 14 | . 3 3 6 . 4 3 14 . . . 3 9 . 1 . Max Kills in Single Turn 4 | . 2 2 3 . 1 1 4 . . . 1 2 . 1 . Gunslinging 1 | . 1 1 . . . . . . . . . . . . . Exploded 1 | . . . 1 . . . 1 . . . . . . . . Melee . | . . . . . . . . . . . . . . . . Uniques/NPCs Destroyed . | . . . . . . . . . . . . . . . . Combat | -11 -10 -9 -8 -7 -7 -6 -5 -5 -5 -5 -4 -4 -3 -3 -2 -------- Run | Yrd Mat Mat Mat Fac DSF Fac Fac Was Fac DSF Fac Gar Res DSF Res Hostile Shots Fired 1108 | . 89 80 103 . 102 35 172 4 . 15 20 190 . 134 164 Missed 372 | . 21 20 24 . 33 8 52 . . 5 7 71 . 66 65 Hits 736 | . 68 60 79 . 69 27 120 4 . 10 13 119 . 68 99 Melee 11 | . . 1 1 . . . . 4 . . . 3 . 2 . Projectile 725 | . 68 59 78 . 69 27 120 . . 10 13 116 . 66 99 Critical Strikes 30 | . . 2 7 . 3 . 3 2 . . 1 7 . . 5 Damage Taken 13161 | . 717 678 994 . 1449 345 2083 188 . 177 289 2356 . 1231 2654 Core 2620 | . 94 48 79 . 138 38 168 99 . 17 18 290 . 173 1458 Absorbed by Shields 85 | . . . . . . . . . . . . . . . 85 Redirected to Shielding 33 | . 15 11 7 . . . . . . . . . . . . Ignored by Resistances 521 | . . . . . . 95 390 . . . . 36 . . . Core Remaining (%) 82 | 100 62 88 85 . 80 95 . . . 71 . 73 . 86 . Volleys Fired 294 | . 32 51 39 . 21 14 67 . . 2 12 34 . 8 14 Largest 4 | . 2 2 4 . 4 4 4 . . 2 4 4 . 4 1 Hottest 336 | . 46 48 174 . 180 267 226 . . 161 336 336 . 145 65 Shots Fired 799 | . 64 97 146 . 62 43 203 . . 4 42 99 . 25 14 Gun 608 | . 64 97 128 . 62 33 98 . . 4 22 71 . 15 14 Cannon 162 | . . . 14 . . 10 80 . . . 20 28 . 10 . Launcher 29 | . . . 4 . . . 25 . . . . . . . . Special . | . . . . . . . . . . . . . . . . Kinetic 519 | . 64 97 104 . 37 15 124 . . . . 53 . 25 . Thermal 192 | . . . 38 . 15 28 24 . . 4 42 27 . . 14 Explosive 4 | . . . 4 . . . . . . . . . . . . Electromagnetic 84 | . . . . . 10 . 55 . . . . 19 . . . Robot Hit Streak 13 | . 9 10 9 . 13 7 11 . . 2 4 7 . 3 5 Robot Miss Streak 9 | . 6 5 4 . 3 5 9 . . 3 6 4 . 4 4 Penetration Max 1 | . . . 1 . . 1 . . . . . 1 . . . Secondary Targets 13 | . 3 2 4 . 2 . . . . . . 2 . . . Max Gunslinging Chain 1 | . 1 1 1 . 1 . . . . . . 1 . . . Shots Hit Robots 490 | . 36 67 82 . 49 23 131 . . 3 24 57 . 11 7 Core Hits 301 | . 18 38 43 . 17 12 112 . . 2 15 39 . 4 1 Critical Kills 3 | . . 1 . . . . . . . . . 1 . 1 . Critical Parts Destroyed 11 | . . 1 3 . . . 1 . . . . 1 . 5 . Critical Strikes 22 | . . 2 4 . . 1 1 . . . 1 7 . 6 . Burn 4 | . . . 1 . . 1 . . . . 1 1 . . . Destroy 14 | . . 2 3 . . . 1 . . . . 2 . 6 . Blast 4 | . . . . . . . . . . . . 4 . . . Melee Attacks . | . . . . . . . . . . . . . . . . Impact . | . . . . . . . . . . . . . . . . Slashing . | . . . . . . . . . . . . . . . . Piercing . | . . . . . . . . . . . . . . . . Sneak Attacks . | . . . . . . . . . . . . . . . . Combat Hostiles . | . . . . . . . . . . . . . . . . Follow-up Attacks . | . . . . . . . . . . . . . . . . Damage Inflicted 12401 | . 490 1050 2035 . 950 535 4052 . . 46 713 2043 . 244 243 Guns 7148 | . 485 1045 1529 . 882 320 1044 . . 46 311 1081 . 162 243 Cannons 3529 | . . . 139 . . 215 1790 . . . 341 962 . 82 . Explosions 1696 | . . . 365 . 68 . 1202 . . . 61 . . . . Melee . | . . . . . . . . . . . . . . . . Ramming 28 | . 5 5 2 . . . 16 . . . . . . . . Kinetic 6961 | . 485 1045 1340 . 608 146 1930 . . . . 1163 . 244 . Thermal 3363 | . . . 328 . 266 389 782 . . 46 652 657 . . 243 Explosive 426 | . . . 365 . . . . . . . 61 . . . . Electromagnetic 1623 | . . . . . 76 . 1324 . . . . 223 . . . Impact . | . . . . . . . . . . . . . . . . Slashing . | . . . . . . . . . . . . . . . . Piercing . | . . . . . . . . . . . . . . . . Highest Corruption 24 | . . . . . . . 6 24 24 24 2 10 . . 10 Average Corruption 5 | . . . . . . . 3 14 24 24 1 5 . . 4 Corruption Purged . | . . . . . . . . . . . . . . . . Corruption Blocked . | . . . . . . . . . . . . . . . . Effects 46 | . . . . . . . 17 8 . 5 1 11 . . 4 Message Errors 12 | . . . . . . . 7 2 . 1 . 2 . . . Matter Fused 10 | . . . . . . . 3 3 . 1 . 3 . . . Heat Flow Errors 5 | . . . . . . . 3 . . . . 1 . . 1 Energy Discharges 3 | . . . . . . . . . . 3 . . . . . Parts Rejected 1 | . . . . . . . 1 . . . . . . . . Parts Fused 1 | . . . . . . . . . . . 1 . . . . Data Loss (minor) 8 | . . . . . . . 2 2 . . . 3 . . 1 Misfires 1 | . . . . . . . . . . . . . . . 1 Misdirections 2 | . . . . . . . . 1 . . . 1 . . . Weapon Failures 3 | . . . . . . . 1 . . . . 1 . . 1 Overload Shots . | . . . . . . . . . . . . . . . . Overflow Damage 107 | . . . 3 . . 14 47 . . . . 43 . . . Projectiles 62 | . . . . . . 14 5 . . . . 43 . . . Explosions 45 | . . . 3 . . . 42 . . . . . . . . Melee . | . . . . . . . . . . . . . . . . Knockbacks 26 | . . . 1 . . . 22 . . . . 2 . 1 . Impact 1 | . . . 1 . . . . . . . . . . . . Kinetic 25 | . . . . . . . 22 . . . . 2 . 1 . Secondary . | . . . . . . . . . . . . . . . . Self-Inflicted Damage 144 | . . . . . . . 119 . . . 25 . . . . Shots 9 | . . . . . . . 8 . . . 1 . . . . Rammed 3 | . 1 1 . . . . 1 . . . . . . . . Targets Rammed 6 | . 1 2 2 . . . 1 . . . . . . . . Kicked . | . . . . . . . . . . . . . . . . Crushed 3 | . . 1 2 . . . . . . . . . . . . Highest Temperature 549 | . 26 30 470 . 66 549 485 . . . 250 419 . 20 267 Average Temperature 135 | . 8 6 190 . 24 251 192 . . . 130 128 . 11 63 Received Heat Transfer 2732 | . 279 321 306 . 354 81 882 . . 30 . 245 . 108 126 Effects 45 | . . . 9 . . 9 23 . . . 1 3 . . . Shutdowns 12 | . . . 3 . . 3 5 . . . . 1 . . . Energy Bleed 5 | . . . 1 . . 1 3 . . . . . . . . Interference 12 | . . . . . . 3 6 . . . 1 2 . . . Matter Decay 2 | . . . . . . 1 1 . . . . . . . . Short Circuit 2 | . . . . . . 1 1 . . . . . . . . Damage (minor) 3 | . . . 1 . . . 2 . . . . . . . . Damage (major) 9 | . . . 4 . . . 5 . . . . . . . . Siege Activations . | . . . . . . . . . . . . . . . . Martial Activations . | . . . . . . . . . . . . . . . . Shielding Activations . | . . . . . . . . . . . . . . . . Robots Disrupted 1 | . . . . . 1 . . . . . . . . . . Combat Hostiles 1 | . . . . . 1 . . . . . . . . . . Robots Corrupted . | . . . . . . . . . . . . . . . . Combat Hostiles . | . . . . . . . . . . . . . . . . Parts Fried 3 | . . . . . . . 2 . . . . 1 . . . Impact Corruptions 1 | . . . . . . . . . . . . 1 . . . Robots Melted . | . . . . . . . . . . . . . . . . Combat Hostiles . | . . . . . . . . . . . . . . . . Parts Melted 6 | . . . . . . 2 . . . . 3 1 . . . Heat Transferred 5211 | . . . 925 . 459 656 779 . . 87 967 1079 . . 259 Parts Sabotaged . | . . . . . . . . . . . . . . . . Parts Stolen . | . . . . . . . . . . . . . . . . Parts Stripped . | . . . . . . . . . . . . . . . . Power Chain Reactions 5 | . . . . . 1 . 4 . . . . . . . . Alert | -11 -10 -9 -8 -7 -7 -6 -5 -5 -5 -5 -4 -4 -3 -3 -2 ------- Run | Yrd Mat Mat Mat Fac DSF Fac Fac Was Fac DSF Fac Gar Res DSF Res Maximum Alert Level 2 | . . 1 2 . 1 . 2 . . . 1 2 1 1 . Low Security (%) 76 | 100 100 88 54 100 35 100 56 100 100 100 91 29 . 65 100 Level 1 16 | . . 11 36 . 64 . 23 . . . 8 30 100 34 . Level 2 6 | . . . 9 . . . 19 . . . . 39 . . . Level 3 . | . . . . . . . . . . . . . . . . Level 4 . | . . . . . . . . . . . . . . . . Level 5 . | . . . . . . . . . . . . . . . . High Security . | . . . . . . . . . . . . . . . . Max Security . | . . . . . . . . . . . . . . . . Sterilizations 1 | . . . . . 1 . . . . . . . . . . Peak Influence 450 | . 105 219 419 164 367 176 436 124 9 23 214 450 227 215 190 Initial 227 | . . 13 79 164 114 176 13 124 9 3 11 133 227 170 84 Average 137 | . 50 132 196 164 215 86 188 88 8 10 80 299 227 183 80 Influence Increases 3899 | . 282 550 598 . 303 178 790 . 5 30 366 452 . 60 285 Destroy 0b10 Robot/C 2060 | . 200 340 340 . 160 140 460 . . . 100 300 . 20 . Destroy 0b10 Robot/NC 180 | . 10 40 65 . . . 55 . . . 5 5 . . . Destroy Leader 420 | . 40 108 106 . 20 20 84 . . . 22 10 . 10 . Successful Hack 126 | . 32 . 14 . . 14 5 . 5 . 28 28 . . . Disable Machine 240 | . . . 30 . 15 . 60 . . 15 105 15 . . . Anti-Garrison Action 50 | . . . . . . . . . . . . 50 . . . Destroy Structure 193 | . . 2 28 . 3 4 36 . . . 106 14 . . . Partial Spotted 60 | . . . . . . . . . . . . . . . 60 Lose Combat Pursuer 570 | . . 60 15 . 105 . 90 . . 15 . 30 . 30 225 Influence Decreases 3789 | . 250 393 424 199 130 487 461 343 14 12 199 237 178 137 325 Entered New Map 1164 | . . 19 110 199 50 161 15 233 5 2 12 57 178 57 66 Time Decay 1944 | . 208 374 294 . . 326 346 50 9 . 187 . . . 150 Lost Part 659 | . 20 . 20 . 80 . 100 60 . 10 . 180 . 80 109 Purge Threat 22 | . 22 . . . . . . . . . . . . . . Squads Dispatched 31 | . 1 3 3 . 2 3 10 . . 2 2 . . 2 3 Investigation 6 | . . 3 1 . . . 2 . . . . . . . . Extermination 8 | . . . . . . 2 3 . . . 2 . . . 1 Reinforcement 17 | . 1 . 2 . 2 1 5 . . 2 . . . 2 2 Assault . | . . . . . . . . . . . . . . . . Garrison . | . . . . . . . . . . . . . . . . Intercept . | . . . . . . . . . . . . . . . . Searches Triggered . | . . . . . . . . . . . . . . . . Construction Impeded 3 | . . . . . . . 3 . . . . . . . . Haulers Reinforced 1 | . . . . . . . 1 . . . . . . . . Active Scanning Responses . | . . . . . . . . . . . . . . . . Cargo Convoy Interrupts . | . . . . . . . . . . . . . . . . Stealth | -11 -10 -9 -8 -7 -7 -6 -5 -5 -5 -5 -4 -4 -3 -3 -2 --------- Run | Yrd Mat Mat Mat Fac DSF Fac Fac Was Fac DSF Fac Gar Res DSF Res Distress Signals 8 | . 1 1 2 . . . 2 . . . . . . . 2 Communications Jammed 4 | . . . . . . . . . . . 1 3 . . . Distress Signals 4 | . . . . . . . . . . . 1 3 . . . Times Spotted 202 | . 15 24 25 . 17 6 37 6 . 5 8 21 . 11 27 Peak Tracking Total 11 | . 6 4 6 . 6 4 6 6 . 3 2 7 . 10 11 Tactical Retreats 20 | . . 3 1 . 3 . 3 . . 1 . 2 . 2 5 Traps | -11 -10 -9 -8 -7 -7 -6 -5 -5 -5 -5 -4 -4 -3 -3 -2 ------- Run | Yrd Mat Mat Mat Fac DSF Fac Fac Was Fac DSF Fac Gar Res DSF Res Traps Triggered 7 | . . 1 1 . 1 . 2 . . . . 2 . . . Indirectly 1 | . . . . . . . 1 . . . . . . . . Trap Hack Attempts . | . . . . . . . . . . . . . . . . Triggered . | . . . . . . . . . . . . . . . . Disarmed . | . . . . . . . . . . . . . . . . Reprogrammed . | . . . . . . . . . . . . . . . . Reused . | . . . . . . . . . . . . . . . . Traps Extracted . | . . . . . . . . . . . . . . . . Installed . | . . . . . . . . . . . . . . . . Triggered . | . . . . . . . . . . . . . . . . Machines | -11 -10 -9 -8 -7 -7 -6 -5 -5 -5 -5 -4 -4 -3 -3 -2 ---------- Run | Yrd Mat Mat Mat Fac DSF Fac Fac Was Fac DSF Fac Gar Res DSF Res Machines Disabled 16 | . . . 2 . 1 . 4 . . 1 7 1 . . . Max in Single Turn 5 | . . . 1 . 1 . 1 . . 1 5 1 . . . Machines Repaired . | . . . . . . . . . . . . . . . . Machines Dismantled . | . . . . . . . . . . . . . . . . Machines Sabotaged . | . . . . . . . . . . . . . . . . Overloaded Fab Kills . | . . . . . . . . . . . . . . . . Hacking | -11 -10 -9 -8 -7 -7 -6 -5 -5 -5 -5 -4 -4 -3 -3 -2 --------- Run | Yrd Mat Mat Mat Fac DSF Fac Fac Was Fac DSF Fac Gar Res DSF Res Machines Accessed 21 | . 2 3 2 1 . 1 2 . 1 . 6 2 1 . . Terminals 16 | . 2 3 2 1 . . 2 . 1 . 2 2 1 . . Fabricators 2 | . . . . . . 1 . . . . 1 . . . . Repair Stations 1 | . . . . . . . . . . . 1 . . . . Recycling Units 1 | . . . . . . . . . . . 1 . . . . Scanalyzers . | . . . . . . . . . . . . . . . . Garrison Access 1 | . . . . . . . . . . . 1 . . . . Total Hacks 51 | . 5 8 5 4 . 3 5 . 4 . 12 4 1 . . Successful 21 | . 3 3 2 1 . 1 1 . 1 . 6 2 1 . . Failed 30 | . 2 5 3 3 . 2 4 . 3 . 6 2 . . . Catastrophic 9 | . 2 1 . . . . 1 . . . 3 2 . . . Database Lockouts . | . . . . . . . . . . . . . . . . Manual . | . . . . . . . . . . . . . . . . Terminals 42 | . 5 8 5 4 . . 5 . 4 . 6 4 1 . . Fabricators 4 | . . . . . . 3 . . . . 1 . . . . Repair Stations 1 | . . . . . . . . . . . 1 . . . . Recycling Units 3 | . . . . . . . . . . . 3 . . . . Scanalyzers . | . . . . . . . . . . . . . . . . Garrison Access 1 | . . . . . . . . . . . 1 . . . . Terminal Hacks 18 | . 3 3 2 1 . . 1 . 1 . 4 2 1 . . Robot Analysis 1 | . . . 1 . . . . . . . . . . . . Open DSF 3 | . . . . 1 . . . . 1 . . . 1 . . Level Access Points 1 | . 1 . . . . . . . . . . . . . . Emergency Access Points 1 | . . . . . . . . . . . . 1 . . . Alert Level 1 | . . . . . . . . . . . 1 . . . . Unreport Threat 1 | . 1 . . . . . . . . . . . . . . Locate Traps 1 | . . . . . . . . . . . 1 . . . . Dispatch Records 1 | . . 1 . . . . . . . . . . . . . Transport Status 1 | . . 1 . . . . . . . . . . . . . Registered Components 1 | . . 1 . . . . . . . . . . . . . Zone Layout 5 | . 1 . 1 . . . 1 . . . 2 . . . . Garrison Registry 1 | . . . . . . . . . . . . 1 . . . Fabricator Hacks 2 | . . . . . . 1 . . . . 1 . . . . Build 2 | . . . . . . 1 . . . . 1 . . . . Repair Station Hacks . | . . . . . . . . . . . . . . . . Recycling Unit Hacks . | . . . . . . . . . . . . . . . . Scanalyzer . | . . . . . . . . . . . . . . . . Garrison Access Hacks 1 | . . . . . . . . . . . 1 . . . . Unlock Access 1 | . . . . . . . . . . . 1 . . . . Unauthorized Hacks . | . . . . . . . . . . . . . . . . Terminals . | . . . . . . . . . . . . . . . . Fabricators . | . . . . . . . . . . . . . . . . Repair Stations . | . . . . . . . . . . . . . . . . Recycling Units . | . . . . . . . . . . . . . . . . Scanalyzers . | . . . . . . . . . . . . . . . . Garrison Access . | . . . . . . . . . . . . . . . . Data Cores Recovered . | . . . . . . . . . . . . . . . . Used . | . . . . . . . . . . . . . . . . Hacking Detections 18 | . 2 2 2 1 . 1 2 . 1 . 5 2 . . . Full Trace Events 7 | . 1 2 1 . . . 2 . . . . 1 . . . Feedback Events 1 | . . . . . . . . . . . . 1 . . . Corruption 1 | . . . . . . . . . . . . 1 . . . Feedback Blocked . | . . . . . . . . . . . . . . . . Robot Schematics Acquired . | . . . . . . . . . . . . . . . . Robots Built . | . . . . . . . . . . . . . . . . Authchips . | . . . . . . . . . . . . . . . . Time . | . . . . . . . . . . . . . . . . Total Robot Build Rating . | . . . . . . . . . . . . . . . . Part Schematics Acquired . | . . . . . . . . . . . . . . . . Parts Built 4 | . . . . . . 2 . . . . 2 . . . . Authchips . | . . . . . . . . . . . . . . . . Time 170 | . . . . . . 53 . . . . 117 . . . . Total Part Build Rating 26 | . . . . . . 12 . . . . 14 . . . . Parts Repaired . | . . . . . . . . . . . . . . . . Time . | . . . . . . . . . . . . . . . . Parts Recycled . | . . . . . . . . . . . . . . . . Recycled Matter . | . . . . . . . . . . . . . . . . Retrieved Matter . | . . . . . . . . . . . . . . . . Retrieved Components . | . . . . . . . . . . . . . . . . Parts Scanalyzed . | . . . . . . . . . . . . . . . . Part Schematics Acquired . | . . . . . . . . . . . . . . . . Parts Damaged . | . . . . . . . . . . . . . . . . Bothacking | -11 -10 -9 -8 -7 -7 -6 -5 -5 -5 -5 -4 -4 -3 -3 -2 ------------ Run | Yrd Mat Mat Mat Fac DSF Fac Fac Was Fac DSF Fac Gar Res DSF Res Used RIF Installer . | . . . . . . . . . . . . . . . . Robots Hacked . | . . . . . . . . . . . . . . . . Non-combat . | . . . . . . . . . . . . . . . . Combat . | . . . . . . . . . . . . . . . . Robot Hacks Applied . | . . . . . . . . . . . . . . . . Relay Couplers Released . | . . . . . . . . . . . . . . . . Fabnet Peak Effective % . | . . . . . . . . . . . . . . . . Robots Rewired . | . . . . . . . . . . . . . . . . Allies Hacked . | . . . . . . . . . . . . . . . . Hacks Repelled . | . . . . . . . . . . . . . . . . Allies | -11 -10 -9 -8 -7 -7 -6 -5 -5 -5 -5 -4 -4 -3 -3 -2 -------- Run | Yrd Mat Mat Mat Fac DSF Fac Fac Was Fac DSF Fac Gar Res DSF Res Total Allies . | . . . . . . . . . . . . . . . . Largest Group . | . . . . . . . . . . . . . . . . Highest-Rated Group . | . . . . . . . . . . . . . . . . Highest-Rated Ally . | . . . . . . . . . . . . . . . . Initial Warlord ECA Mod 78 | . . . . . . 9 8 8 8 8 7 7 8 8 7 Total Orders . | . . . . . . . . . . . . . . . . Ally Attacks . | . . . . . . . . . . . . . . . . Total Damage . | . . . . . . . . . . . . . . . . Kills . | . . . . . . . . . . . . . . . . Allies Corrupted . | . . . . . . . . . . . . . . . . Allies Melted . | . . . . . . . . . . . . . . . . Intel | -11 -10 -9 -8 -7 -7 -6 -5 -5 -5 -5 -4 -4 -3 -3 -2 ------- Run | Yrd Mat Mat Mat Fac DSF Fac Fac Was Fac DSF Fac Gar Res DSF Res Active Infowar (turns) 2452 | . . . . . . . 982 102 . 5 798 426 6 133 . Optics 1084 | . . . . . . . 982 102 . . . . . . . Sensors 732 | . . . . . . . . . . . 673 59 . . . Jamming 1368 | . . . . . . . . . . 5 798 426 6 133 . Robot Analysis Total 1 | . . . 1 . . . . . . . . . . . . Derelict Logs Recovered . | . . . . . . . . . . . . . . . . Drone Launches . | . . . . . . . . . . . . . . . . Drone Recoveries . | . . . . . . . . . . . . . . . . Exploration | -11 -10 -9 -8 -7 -7 -6 -5 -5 -5 -5 -4 -4 -3 -3 -2 ------------- Run | Yrd Mat Mat Mat Fac DSF Fac Fac Was Fac DSF Fac Gar Res DSF Res Turns Passed 6229 | 78 507 983 642 7 263 726 1002 117 21 87 896 426 6 155 313 Spaces Moved 3315 | 55 180 491 282 5 101 355 449 87 8 46 424 260 6 128 438 Core 91 | 22 15 . . . . . . 30 8 16 . . . . . Treads 1860 | 33 165 413 282 5 101 355 449 57 . . . . . . . Legs 812 | . . 78 . . . . . . . 30 424 260 6 14 . Wheels . | . . . . . . . . . . . . . . . . Hover 360 | . . . . . . . . . . . . . . . 360 Flight 192 | . . . . . . . . . . . . . . 114 78 Fastest Speed 25 | 50 160 160 160 160 160 160 160 50 250 100 120 120 120 25 32 Average Speed 136 | 116 218 164 160 160 160 160 166 132 250 129 120 120 120 42 57 Slowest Speed 600 | 160 600 190 160 160 160 160 240 500 250 250 120 120 120 157 102 Overloaded Moves . | . . . . . . . . . . . . . . . . Propulsion Burnouts . | . . . . . . . . . . . . . . . . Robots Hopped 1 | . . . . . . . . . . . . . . 1 . Potential Cave-ins . | . . . . . . . . . . . . . . . . Cave-ins Triggered . | . . . . . . . . . . . . . . . . Exploration Rate (%) 37 | 5 44 46 37 1 80 11 14 89 . 43 12 42 . 82 14 Regions Visited 15 Branch Regions . Pre-discovered Areas . | . . . . . . . . . . . . . . . . Known Exits Taken 5 | . 1 . . 1 . . . . 1 . 1 . 1 . . Unknown Exits Taken 4 | 1 . 1 1 . . 1 . . . . . . . . . Scrap Searched . | . . . . . . . . . . . . . . . . Spaces Dug . | . . . . . . . . . . . . . . . . Terrain Destroyed 130 | . . . 44 . 3 6 16 . . . 56 4 . 1 . Melee . | . . . . . . . . . . . . . . . . Projectile 29 | . . . 4 . . 6 5 . . . 9 4 . 1 . AOE 100 | . . . 39 . 3 . 11 . . . 47 . . . . Terrain Rammed . | . . . . . . . . . . . . . . . . Walls Destroyed . | . . . . . . . . . . . . . . . . Machines Disabled . | . . . . . . . . . . . . . . . . Actions | -11 -10 -9 -8 -7 -7 -6 -5 -5 -5 -5 -4 -4 -3 -3 -2 --------- Run | Yrd Mat Mat Mat Fac DSF Fac Fac Was Fac DSF Fac Gar Res DSF Res Total 4448 | 68 234 578 387 4 159 485 567 88 10 69 787 314 5 210 483 Wait 479 | . . . 13 . 3 88 15 . . 8 316 . . 33 3 Move 3300 | 54 179 490 281 4 100 354 449 86 7 45 423 259 5 126 438 Hop 1 | . . . . . . . . . . . . . . 1 . Pick Up 136 | 8 11 17 15 . 14 15 9 1 . 7 13 9 . 12 5 Fast Attach 22 | 2 . . . . . . 2 . . 1 2 1 . 7 7 Attach 77 | 4 2 3 6 . 6 7 7 1 3 5 8 10 . 9 6 Detach 7 | . . . . . . . . . . 1 . . . 1 5 Swap 45 | . 4 7 12 . 5 3 5 . . . 5 . . 3 1 Drop 81 | . 5 8 19 . 10 4 12 . . . 8 1 . 10 4 Fire 294 | . 32 51 39 . 21 14 67 . . 2 12 34 . 8 14 Melee . | . . . . . . . . . . . . . . . . Ram . | . . . . . . . . . . . . . . . . Kick . | . . . . . . . . . . . . . . . . Crush 6 | . 1 2 2 . . . 1 . . . . . . . . Escape Stasis . | . . . . . . . . . . . . . . . . Rewire . | . . . . . . . . . . . . . . . . Trap . | . . . . . . . . . . . . . . . . Miscellaneous . | . . . . . . . . . . . . . . . . Route ------- -11/Scrapyard -10/Materials (discovered 3 exits: *Mat x3) -9/Materials -8/Materials -7/Factory -7/DSF -6/Factory -5/Factory -5/Waste -5/Factory -5/DSF -4/Factory -4/Garrison (discovered 3 exits: *Res x3) -3/Research -3/DSF -2/Research History --------- Turn | Location | Event 7 | -11/Scrapyard | Discovered new exit (range 15) 79 | -11/Scrapyard | Entered Materials 124 | -10/Materials | Identified exit to Materials 308 | -10/Materials | Build established: Mutant 586 | -10/Materials | Entered another Materials area 586 | -9/Materials | Evolved 2 slots: Propulsion x2 1430 | -9/Materials | Discovered new exit (range 12) 1569 | -9/Materials | Entered another Materials area 1569 | -8/Materials | Evolved 2 slots: Weapon x2 1862 | -8/Materials | Build established: Tank 2169 | -8/Materials | Discovered new exit (range 16) 2211 | -8/Materials | Entered Factory 2211 | -7/Factory | Evolved 2 slots: Utility x2 2215 | -7/Factory | Identified exit to DSF 2218 | -7/Factory | Entered DSF 2267 | -7/DSF | Additional patrols routed to DSF 2454 | -7/DSF | Sterilization system engaged 2457 | -7/DSF | Discovered new exit (range 15) 2474 | -7/DSF | Ambient heat levels rising (+10) 2481 | -7/DSF | Entered Factory 2481 | -6/Factory | Evolved 2 slots: Power x1, Utility x1 2489 | -6/Factory | Lost 8 parts (1p2n2u3w) 2621 | -6/Factory | Fabricated Hvy. Phase Cannon (x2) 3090 | -6/Factory | Discovered new exit (range 15) 3207 | -6/Factory | Entered another Factory area 3207 | -5/Factory | Evolved 2 slots: Propulsion x1, Utility x1 3881 | -5/Factory | Destroyed 14 combat bots 3996 | -5/Factory | Lost 3 parts (1p1n1w) 4135 | -5/Factory | Lost 3 parts (2n1w) 4209 | -5/Factory | Sucked down chute 4209 | -5/Factory | Entered Waste 4224 | -5/Waste | EMP discharged 4224 | -5/Waste | System corruption reached 10% 4236 | -5/Waste | Spotted C-40 Crusher 4261 | -5/Waste | Spotted C-40 Crusher 4286 | -5/Waste | Spotted C-40 Crusher 4288 | -5/Waste | Spotted C-40 Crusher 4295 | -5/Waste | Spotted C-40 Crusher 4299 | -5/Waste | Crushed by Compactor (1 part destroyed, 2 dropped) 4301 | -5/Waste | Spotted C-40 Crusher 4303 | -5/Waste | Crushed by Compactor (1 part destroyed, 2 dropped) 4306 | -5/Waste | Crushed by Compactor (1 part destroyed, 1 dropped) 4311 | -5/Waste | Crushed by Compactor (1 part destroyed, 1 dropped) 4321 | -5/Waste | Discovered new exit (range 12) 4324 | -5/Waste | EMP discharged 4326 | -5/Waste | Entered Factory 4342 | -5/Factory | Lost 6 parts (1p1n3u1w) 4347 | -5/Factory | Identified exit to DSF 4347 | -5/Factory | Entered DSF 4348 | -5/DSF | Joined Warlord attack on 0b10 via DSF 4369 | -5/DSF | Additional patrols routed to DSF 4388 | -5/DSF | Discovered new exit (range 14) 4434 | -5/DSF | Entered Factory 4434 | -4/Factory | Evolved 2 slots: Utility x2 4439 | -4/Factory | 1 allies followed out of DSF 4444 | -4/Factory | Lost 11 allies 4977 | -4/Factory | Build established: Scavenger-Skirmisher 5181 | -4/Factory | Fabricated Hvy. Disruptor Cannon? 5215 | -4/Factory | Identified exit to Garrison 5330 | -4/Factory | Entered Garrison 5385 | -4/Garrison | Spotted B-86 Titan 5456 | -4/Garrison | Triggered checkpoint 5466 | -4/Garrison | Lost 6 parts (1p1n2u2w) 5468 | -4/Garrison | Triggered checkpoint 5505 | -4/Garrison | Lost 3 parts (2n1w) 5549 | -4/Garrison | Destroyed 9 combat bots 5558 | -4/Garrison | Lost 3 parts (1p1u1w) 5586 | -4/Garrison | Discovered new exit (range 69) 5586 | -4/Garrison | Discovered new exit (range 66) 5586 | -4/Garrison | Discovered new exit (range 48) 5727 | -4/Garrison | System corruption reached 10% 5756 | -4/Garrison | Entered Research 5756 | -3/Research | Evolved 2 slots: Propulsion x1, Utility x1 5762 | -3/Research | Identified exit to DSF 5762 | -3/Research | Entered DSF 5787 | -3/DSF | Lost 6 parts (1p3n2w) 5788 | -3/DSF | Additional patrols routed to DSF 5816 | -3/DSF | Found Imp. Powered Armor 5913 | -3/DSF | Discovered new exit (range 11) 5917 | -3/DSF | Entered Research 5917 | -2/Research | Evolved 2 slots: Utility x2 5945 | -2/Research | Lost 7 parts (1p4n2u) 5999 | -2/Research | Lost 4 parts (4n) 6031 | -2/Research | Spotted B-90 Cyclops 6165 | -2/Research | Core integrity fell below 50% 6227 | -2/Research | Core integrity fell below 20% 6227 | -2/Research | System corruption reached 10% 6230 | -2/Research | Destroyed by G-73 Enforcer with Heavy Laser Last Messages --------------- Enh. Quantum Rifle. 06127_ System corrupted: Enh. Quantum Rifle misfires. 06157_ ALERT: Security rotation in progress. 06160_ Acquired Adv. Force Field. 06183_ System corrupted: Enh. Quantum Rifle failed to cycle. 06185_ System corrupted: FCS attempts to trigger Enh. Quantum Rifle. 06197_ Enh. Quantum Rifle destroyed. 06201_ System corrupted: Component data lost. 06218_ System corrupted: Heat flow error (+264). 06221_ Lgt. Quantum Reactor destroyed. 06221_ Adv. Force Field destroyed. 06223_ Imp. Gyrokinetic Inverter destroyed. 06224_ Slug penetrates Wall. 06224_ Penetrated by Slug. 06225_ Slug penetrates Wall. 06227_ Penetrated by Slug. [Achievement: Just Browsing] Map ----- +----------------------------------------------------+ | ???????????????+ ! ?# # #???????????? | | ???????????????# ?# ########???????????? | | ???????????????#######??# #???? #???????????? | | ????????????????????????# #??? #???????????? | | ???????????????######???# #??? #???????????? | | ???????????????# ??# #?? #???????????? | | ???????????????# ??# #?? #???????????? | | ???????????????# ?# #? #???????????? | | ???????????????# ?# #? #???????????? | | ???????????????# # # #???????????? | | ???????????????# # # #???????????? | | ???????????????# + + #???????????? | | ???????????????# # # #???????????? | | ???????????????# # # #???????????? | | ???????????????########?# #? #???????????? | | ????????????????????????# R #?######???????????? | | ????????????????????????# #??????????????????? | | ????????????????????????# #??????????????????? | | ????????????????????????# w#??????????????????? | | ????????????????????????# #??????????????????? | | ????????????????????????# g #???????????????#??? | | ????????????????????????# g #?????????????? #??? | | ????????????????????????# g #?????????????? #??? | | ????????????????????????# g #????????????? #??? | | ????????????????????????# #????????????? #??? | | ????????????????????????#@ #???????????? #??? | | ????????????????????????# #???????????? #??? | | ????????????????????????# #??????????? ????? | | ??????????????????###+### #####+######/####### | | ??????????????? p | | ?????????????? w p | | ??????????????? h | | ??????????????? h % | | ??????????????? | | ???????????????######+#############+######+####### | | ????????????????????????????????? # ### | | ??????????????????????????????? # ## | | ?????????????????????????????""" # """" ## | | ???????????????????????????#"""" = # ""S"" ## | | ????????????????????????????"""" # "" "" ## | | ????????????????????????????"""" # ### | | ????????????????????????????? # + | | ????????????????????????????? # ### | | ?????????????????????????????##################### | | ???????????????????????????????????????????????# | | ???????????????????????????????????????????????# | | ???????????????????????????????????????????????# | | ???????????????????????????????????????????????# | | ???????????????????????????????????????????????# | | ???????????????????????????????????????????????### | +----------------------------------------------------+ Best States ------------- Heat Dissipation 65 Coolant Potential 80 Energy Generation 39 Energy Capacity 415 Matter Stores 300 Matter Capacity 300 Sight Range 22 Robot Scan Range 16 Terrain Scan Density 10 Jamming Range 16 Armor Coverage 400 Resistance: KI 20 Resistance: TH 20 Resistance: EX 50 Core Shielding 20 Weapon Cycling 15 Evasion (%) 70 Targeting Accuracy 8 Recoil Reduction 5 Authchip Count 1 Item Schematics ----------------- None Robot Schematics ------------------ None Fabricated ------------ Hvy. Phase Cannon | x2 | -6/Factory | Preloaded Hvy. Disruptor Cannon | x2 | -4/Factory | Preloaded Repaired ---------- Nothing Alien Tech Used ----------------- None Achievements -------------- Dangerous Findings Just Browsing Just What I Needed No Signal Streaker Challenges ------------ None Game ------ Seed ThiefMomentumWheel Manual? 0 Play Time 01:19:48 Cumulative 23.7 hours Start 2025.07.21 @ 00:31:11 End 2025.07.21 @ 01:53:37 Sessions 1 Manual Loads 0 Difficulty Rogue Special Mode None Game No. 65 Rogue 65 Adventurer 0 Explorer 0 Win Type - Total 0 Types 0/0/0/0/0/0/0/0/0/0 Lore% 22 Gallery% 26 Achievement% 20 Wizard Run 0 Options --------- Layout 1 ASCII 0 Keyboard 0 Movement Mouse Keybinds 0 Fullscreen 1 Font 24/Smallcaps Map View 50x40 Zoom Use 0% Tactical HUD 1 Map Filters NONE Filters NONE Steam 1 RUN: 8aa9c783-7661-4c19-a755-cad28c5bdbc0